[Event "Titled Tuesday Blitz November 07 Early 2023"]
[White "Herzog2012"]
[Black "Harriott, Tyrell"]
[BlackFideId "2086484"]
[WhiteElo "2594"]
[BlackElo "2331"]
[Result "0-1"]
[Round "3"]
[TimeControl "180+1"]
[Date "2023.11.07"]
[WhiteClock "0:00:06"]
[BlackClock "0:01:26"]
[Board "145"]

1. d4 {[%clk 0:03:00]}  e6 {[%clk 0:02:57]} 2. c4 {[%clk 0:02:59]}  d5 {[%clk 0:02:56]} 3. Nc3 {[%clk 0:02:58]}  f5 {[%clk 0:02:50]} 4. Bf4 {[%clk 0:02:49]}  Ne7 {[%clk 0:02:49]} 5. e3 {[%clk 0:02:45]}  Ng6 {[%clk 0:02:48]} 6. Bg3 {[%clk 0:02:45]}  Be7 {[%clk 0:02:47]} 7. Nf3 {[%clk 0:02:45]}  O-O {[%clk 0:02:46]} 8. Be2 {[%clk 0:02:45]}  f4 {[%clk 0:02:45]} 9. exf4 {[%clk 0:02:45]}  Nxf4 {[%clk 0:02:45]} 10. Bxf4 {[%clk 0:02:45]}  Rxf4 {[%clk 0:02:45]} 11. O-O {[%clk 0:02:44]}  Nc6 {[%clk 0:02:42]} 12. g3 {[%clk 0:02:43]}  Rf8 {[%clk 0:02:41]} 13. cxd5 {[%clk 0:02:43]}  exd5 {[%clk 0:02:41]} 14. Rc1 {[%clk 0:02:43]}  Be6 {[%clk 0:02:36]} 15. Re1 {[%clk 0:02:41]}  Bf7 {[%clk 0:02:34]} 16. Qd2 {[%clk 0:02:23]}  Bf6 {[%clk 0:02:32]} 17. Bf1 {[%clk 0:02:18]}  Bh5 {[%clk 0:02:30]} 18. Bg2 {[%clk 0:02:15]}  Bxf3 {[%clk 0:02:19]} 19. Bxf3 {[%clk 0:02:16]}  Bg5 {[%clk 0:02:17]} 20. Qd3 {[%clk 0:01:26]}  Bxc1 {[%clk 0:02:12]} 21. Bxd5+ {[%clk 0:01:26]}  Kh8 {[%clk 0:02:08]} 22. Rxc1 {[%clk 0:01:25]}  Nb4 {[%clk 0:02:08]} 23. Qc4 {[%clk 0:01:08]}  Nxd5 {[%clk 0:02:04]} 24. Nxd5 {[%clk 0:01:09]}  c6 {[%clk 0:01:59]} 25. Nf4 {[%clk 0:01:05]}  Qf6 {[%clk 0:01:55]} 26. Rd1 {[%clk 0:00:54]}  Rad8 {[%clk 0:01:43]} 27. b3 {[%clk 0:00:33]}  Rd6 {[%clk 0:01:41]} 28. d5 {[%clk 0:00:19]}  g5 {[%clk 0:01:32]} 29. Nd3 {[%clk 0:00:13]}  Rxd5 {[%clk 0:01:30]} 30. Re1 {[%clk 0:00:06]}  Rxd3 {[%clk 0:01:26]} 0-1


[Site "https://www.chess.com"]

[Event "Titled Tuesday Blitz November 07 Early 2023"]
[White "SlippperyWhenWet"]
[Black "Feuerstack, Aljoscha"]
[BlackFideId "4681932"]
[WhiteElo "2329"]
[BlackElo "2593"]
[Result "0-1"]
[Round "3"]
[TimeControl "180+1"]
[Date "2023.11.07"]
[WhiteClock "0:00:24"]
[BlackClock "0:00:20"]
[Board "146"]

1. d4 {[%clk 0:03:00]}  Nf6 {[%clk 0:02:59]} 2. Nf3 {[%clk 0:02:59]}  c5 {[%clk 0:02:58]} 3. e3 {[%clk 0:02:57]}  g6 {[%clk 0:02:57]} 4. Bd3 {[%clk 0:02:57]}  Bg7 {[%clk 0:02:57]} 5. b3 {[%clk 0:02:57]}  O-O {[%clk 0:02:57]} 6. Bb2 {[%clk 0:02:57]}  cxd4 {[%clk 0:02:55]} 7. exd4 {[%clk 0:02:57]}  d5 {[%clk 0:02:56]} 8. O-O {[%clk 0:02:57]}  Nc6 {[%clk 0:02:51]} 9. Nbd2 {[%clk 0:02:57]}  Bf5 {[%clk 0:02:47]} 10. Bxf5 {[%clk 0:02:56]}  gxf5 {[%clk 0:02:48]} 11. c4 {[%clk 0:02:55]}  e6 {[%clk 0:02:30]} 12. Re1 {[%clk 0:02:52]}  Ne4 {[%clk 0:02:30]} 13. Nxe4 {[%clk 0:02:51]}  dxe4 {[%clk 0:02:04]} 14. Ne5 {[%clk 0:02:50]}  Ne7 {[%clk 0:02:04]} 15. c5 {[%clk 0:02:14]}  Bxe5 {[%clk 0:01:57]} 16. dxe5 {[%clk 0:02:14]}  Qxd1 {[%clk 0:01:58]} 17. Rexd1 {[%clk 0:02:12]}  Nd5 {[%clk 0:01:58]} 18. Bd4 {[%clk 0:02:10]}  Rac8 {[%clk 0:01:51]} 19. Rac1 {[%clk 0:02:10]}  Nb4 {[%clk 0:01:48]} 20. a3 {[%clk 0:02:07]}  Nd3 {[%clk 0:01:46]} 21. Rc3 {[%clk 0:02:03]}  Rfd8 {[%clk 0:01:45]} 22. Be3 {[%clk 0:01:59]}  Nxe5 {[%clk 0:01:45]} 23. Rxd8+ {[%clk 0:01:56]}  Rxd8 {[%clk 0:01:45]} 24. h3 {[%clk 0:01:47]}  Rd1+ {[%clk 0:01:35]} 25. Kh2 {[%clk 0:01:46]}  Rd3 {[%clk 0:01:35]} 26. Rxd3 {[%clk 0:01:26]}  exd3 {[%clk 0:01:20]} 27. Kg1 {[%clk 0:01:23]}  Nc6 {[%clk 0:00:54]} 28. b4 {[%clk 0:01:19]}  e5 {[%clk 0:00:51]} 29. Kf1 {[%clk 0:01:17]}  Kf8 {[%clk 0:00:33]} 30. Ke1 {[%clk 0:01:17]}  Ke7 {[%clk 0:00:33]} 31. Bg5+ {[%clk 0:01:16]}  Ke6 {[%clk 0:00:33]} 32. Kd2 {[%clk 0:01:14]}  e4 {[%clk 0:00:33]} 33. Ke3 {[%clk 0:01:07]}  Ne5 {[%clk 0:00:32]} 34. Kd4 {[%clk 0:01:02]}  Nc6+ {[%clk 0:00:32]} 35. Kc3 {[%clk 0:01:01]}  Kd5 {[%clk 0:00:29]} 36. Bf4 {[%clk 0:00:58]}  Nd4 {[%clk 0:00:29]} 37. Bb8 {[%clk 0:00:45]}  Nb5+ {[%clk 0:00:28]} 38. Kb3 {[%clk 0:00:43]}  Nxa3 {[%clk 0:00:25]} 39. Bf4 {[%clk 0:00:39]}  Nb5 {[%clk 0:00:25]} 40. Ka4 {[%clk 0:00:34]}  Kc4 {[%clk 0:00:24]} 41. f3 {[%clk 0:00:33]}  Nc3+ {[%clk 0:00:22]} 42. Ka5 {[%clk 0:00:32]}  Nd5 {[%clk 0:00:23]} 43. b5 {[%clk 0:00:27]}  Kxc5 {[%clk 0:00:20]} 44. g4 {[%clk 0:00:24]}  Nxf4 {[%clk 0:00:20]} 45. fxe4 {[%clk 0:00:23]}  fxe4 {[%clk 0:00:19]} 46. g5 {[%clk 0:00:24]}  d2 {[%clk 0:00:20]} 47. g6 {[%clk 0:00:25]}  d1=Q {[%clk 0:00:19]} 48. gxf7 {[%clk 0:00:24]}  Qa1# {[%clk 0:00:20]} 0-1


[Site "https://www.chess.com"]

[Event "Titled Tuesday Blitz November 07 Early 2023"]
[White "GatoRojo150"]
[Black "Maect19"]
[WhiteElo "2586"]
[BlackElo "2328"]
[Result "1-0"]
[Round "3"]
[TimeControl "180+1"]
[Date "2023.11.07"]
[WhiteClock "0:01:40"]
[BlackClock "0:00:13"]
[Board "147"]

1. e4 {[%clk 0:03:00]}  e5 {[%clk 0:02:59]} 2. Nf3 {[%clk 0:02:59]}  Nc6 {[%clk 0:02:59]} 3. Nc3 {[%clk 0:02:58]}  Nf6 {[%clk 0:02:58]} 4. Bb5 {[%clk 0:02:57]}  Bd6 {[%clk 0:02:53]} 5. d3 {[%clk 0:02:57]}  h6 {[%clk 0:02:51]} 6. a3 {[%clk 0:02:56]}  O-O {[%clk 0:02:51]} 7. g4 {[%clk 0:02:56]}  Nh7 {[%clk 0:02:47]} 8. h4 {[%clk 0:02:54]}  a6 {[%clk 0:02:44]} 9. Bc4 {[%clk 0:02:52]}  Kh8 {[%clk 0:02:42]} 10. g5 {[%clk 0:02:51]}  h5 {[%clk 0:02:41]} 11. Nd5 {[%clk 0:02:36]}  Ne7 {[%clk 0:02:29]} 12. Nh2 {[%clk 0:02:23]}  g6 {[%clk 0:02:23]} 13. Nf6 {[%clk 0:02:18]}  Nxf6 {[%clk 0:02:22]} 14. gxf6 {[%clk 0:02:19]}  Ng8 {[%clk 0:02:21]} 15. Bg5 {[%clk 0:02:13]}  Kh7 {[%clk 0:02:06]} 16. Qf3 {[%clk 0:02:12]}  b5 {[%clk 0:01:57]} 17. Bd5 {[%clk 0:02:11]}  c6 {[%clk 0:01:56]} 18. Bb3 {[%clk 0:02:09]}  Bc5 {[%clk 0:01:49]} 19. O-O-O {[%clk 0:02:07]}  Bb7 {[%clk 0:01:41]} 20. Qg3 {[%clk 0:02:05]}  d6 {[%clk 0:01:19]} 21. f4 {[%clk 0:02:03]}  exf4 {[%clk 0:01:15]} 22. Qxf4 {[%clk 0:02:04]}  d5 {[%clk 0:01:12]} 23. Nf3 {[%clk 0:02:01]}  dxe4 {[%clk 0:01:08]} 24. dxe4 {[%clk 0:02:02]}  Qb8 {[%clk 0:01:05]} 25. e5 {[%clk 0:02:00]}  Bb6 {[%clk 0:00:52]} 26. Qg3 {[%clk 0:01:58]}  c5 {[%clk 0:00:47]} 27. Bd5 {[%clk 0:01:46]}  Bxd5 {[%clk 0:00:44]} 28. Rxd5 {[%clk 0:01:46]}  Bc7 {[%clk 0:00:41]} 29. Bf4 {[%clk 0:01:45]}  Qb7 {[%clk 0:00:38]} 30. Rhd1 {[%clk 0:01:45]}  Rad8 {[%clk 0:00:37]} 31. Rd7 {[%clk 0:01:44]}  Qc8 {[%clk 0:00:34]} 32. Ng5+ {[%clk 0:01:40]}  Kh8 {[%clk 0:00:28]} 33. Nxf7+ {[%clk 0:01:41]}  Rxf7 {[%clk 0:00:27]} 34. Rxf7 {[%clk 0:01:41]}  Rxd1+ {[%clk 0:00:27]} 35. Kxd1 {[%clk 0:01:42]}  Qd8+ {[%clk 0:00:24]} 36. Kc1 {[%clk 0:01:42]}  Ba5 {[%clk 0:00:13]} 37. Qxg6 {[%clk 0:01:40]} 1-0


[Site "https://www.chess.com"]

[Event "Titled Tuesday Blitz November 07 Early 2023"]
[White "MIss_MIaMI"]
[Black "Kotlyar, Kirill"]
[BlackFideId "24145599"]
[WhiteElo "2321"]
[BlackElo "2584"]
[Result "1-0"]
[Round "3"]
[TimeControl "180+1"]
[Date "2023.11.07"]
[WhiteClock "0:00:48"]
[BlackClock "0:00:10"]
[Board "148"]

1. e4 {[%clk 0:03:00]}  e5 {[%clk 0:02:58]} 2. Nf3 {[%clk 0:03:00]}  Nc6 {[%clk 0:02:56]} 3. d4 {[%clk 0:03:01]}  exd4 {[%clk 0:02:56]} 4. c3 {[%clk 0:03:01]}  d5 {[%clk 0:02:50]} 5. exd5 {[%clk 0:03:02]}  Qxd5 {[%clk 0:02:50]} 6. Nxd4 {[%clk 0:03:03]}  Nxd4 {[%clk 0:02:35]} 7. cxd4 {[%clk 0:03:03]}  Nf6 {[%clk 0:02:29]} 8. Nc3 {[%clk 0:03:03]}  Bb4 {[%clk 0:02:29]} 9. Qa4+ {[%clk 0:03:03]}  Bd7 {[%clk 0:02:10]} 10. Qxb4 {[%clk 0:03:03]}  Qf5 {[%clk 0:01:59]} 11. Be3 {[%clk 0:02:46]}  O-O-O {[%clk 0:01:54]} 12. Qc5 {[%clk 0:02:38]}  Qc2 {[%clk 0:01:39]} 13. Rc1 {[%clk 0:02:20]}  Qxb2 {[%clk 0:01:38]} 14. Na4 {[%clk 0:01:30]}  Qxc1+ {[%clk 0:01:34]} 15. Qxc1 {[%clk 0:01:30]}  Bxa4 {[%clk 0:01:35]} 16. Qa3 {[%clk 0:01:29]}  Bc6 {[%clk 0:01:28]} 17. Qxa7 {[%clk 0:01:28]}  Nd5 {[%clk 0:01:23]} 18. Be2 {[%clk 0:01:25]}  Rhe8 {[%clk 0:01:22]} 19. O-O {[%clk 0:01:23]}  f5 {[%clk 0:01:21]} 20. Bf3 {[%clk 0:01:20]}  h6 {[%clk 0:01:08]} 21. Rc1 {[%clk 0:01:14]}  Kd7 {[%clk 0:01:05]} 22. Qc5 {[%clk 0:01:09]}  Kc8 {[%clk 0:00:51]} 23. Bd2 {[%clk 0:01:01]}  g5 {[%clk 0:00:32]} 24. h3 {[%clk 0:01:00]}  Rg8 {[%clk 0:00:25]} 25. Qa5 {[%clk 0:00:53]}  g4 {[%clk 0:00:22]} 26. hxg4 {[%clk 0:00:54]}  fxg4 {[%clk 0:00:21]} 27. Bxd5 {[%clk 0:00:50]}  b6 {[%clk 0:00:16]} 28. Qa6+ {[%clk 0:00:49]}  Kd7 {[%clk 0:00:10]} 29. Bxc6+ {[%clk 0:00:48]} 1-0


[Site "https://www.chess.com"]

[Event "Titled Tuesday Blitz November 07 Early 2023"]
[White "Sydoryka, Vladyslav"]
[Black "Zaksaite, Salomeja"]
[WhiteFideId "14145928"]
[BlackFideId "12801496"]
[WhiteElo "2579"]
[BlackElo "2318"]
[Result "1-0"]
[Round "3"]
[TimeControl "180+1"]
[Date "2023.11.07"]
[WhiteClock "0:01:06"]
[BlackClock "0:00:00"]
[Board "150"]

1. c4 {[%clk 0:03:00]}  e5 {[%clk 0:02:59]} 2. g3 {[%clk 0:03:01]}  Nf6 {[%clk 0:02:58]} 3. Bg2 {[%clk 0:03:02]}  g6 {[%clk 0:02:56]} 4. Nc3 {[%clk 0:03:01]}  Bg7 {[%clk 0:02:57]} 5. d3 {[%clk 0:03:01]}  O-O {[%clk 0:02:56]} 6. Nf3 {[%clk 0:03:01]}  Re8 {[%clk 0:02:56]} 7. O-O {[%clk 0:03:02]}  c6 {[%clk 0:02:54]} 8. a3 {[%clk 0:02:55]}  d5 {[%clk 0:02:52]} 9. cxd5 {[%clk 0:02:55]}  cxd5 {[%clk 0:02:52]} 10. Bg5 {[%clk 0:02:55]}  Nc6 {[%clk 0:02:48]} 11. Qb3 {[%clk 0:02:45]}  d4 {[%clk 0:02:37]} 12. Ne4 {[%clk 0:02:38]}  Rb8 {[%clk 0:01:10]} 13. Rfc1 {[%clk 0:02:15]}  Be6 {[%clk 0:01:05]} 14. Qd1 {[%clk 0:02:15]}  Bd5 {[%clk 0:00:59]} 15. Nfd2 {[%clk 0:01:50]}  Be6 {[%clk 0:00:30]} 16. Nc5 {[%clk 0:01:39]}  Bc8 {[%clk 0:00:28]} 17. Nde4 {[%clk 0:01:29]}  h6 {[%clk 0:00:27]} 18. Nxf6+ {[%clk 0:01:28]}  Bxf6 {[%clk 0:00:28]} 19. Bxh6 {[%clk 0:01:28]}  g5 {[%clk 0:00:22]} 20. Be4 {[%clk 0:01:20]}  Ne7 {[%clk 0:00:17]} 21. Qd2 {[%clk 0:01:15]}  Ng6 {[%clk 0:00:17]} 22. Bxg6 {[%clk 0:01:11]}  fxg6 {[%clk 0:00:17]} 23. Ne4 {[%clk 0:01:12]}  Be7 {[%clk 0:00:07]} 24. Bxg5 {[%clk 0:01:12]}  Bf5 {[%clk 0:00:04]} 25. Bxe7 {[%clk 0:01:11]}  Qxe7 {[%clk 0:00:04]} 26. b4 {[%clk 0:01:10]}  Rec8 {[%clk 0:00:03]} 27. Rxc8+ {[%clk 0:01:08]}  Rxc8 {[%clk 0:00:03]} 28. Rc1 {[%clk 0:01:09]}  Kf7 {[%clk 0:00:02]} 29. Rxc8 {[%clk 0:01:06]}  Bxc8 {[%clk 0:00:00]} 30. Qh6 {[%clk 0:01:06]} 1-0


[Site "https://www.chess.com"]

[Event "Titled Tuesday Blitz November 07 Early 2023"]
[White "Jaskolka, Tomasz"]
[Black "Mazzilli, Piero"]
[WhiteFideId "1170791"]
[BlackFideId "807087"]
[WhiteElo "2570"]
[BlackElo "2313"]
[Result "1-0"]
[Round "3"]
[TimeControl "180+1"]
[Date "2023.11.07"]
[WhiteClock "0:01:32"]
[BlackClock "0:00:57"]
[Board "152"]

1. d4 {[%clk 0:03:00]}  d5 {[%clk 0:02:59]} 2. Nc3 {[%clk 0:03:00]}  Nf6 {[%clk 0:02:56]} 3. Bf4 {[%clk 0:03:00]}  c6 {[%clk 0:02:56]} 4. Nf3 {[%clk 0:02:58]}  Bf5 {[%clk 0:02:56]} 5. e3 {[%clk 0:02:57]}  Nbd7 {[%clk 0:02:56]} 6. Ne5 {[%clk 0:02:58]}  e6 {[%clk 0:02:54]} 7. g4 {[%clk 0:02:46]}  Bg6 {[%clk 0:02:46]} 8. h4 {[%clk 0:02:45]}  h5 {[%clk 0:02:06]} 9. Nxg6 {[%clk 0:02:44]}  fxg6 {[%clk 0:02:06]} 10. g5 {[%clk 0:02:42]}  Ng8 {[%clk 0:01:59]} 11. Bd3 {[%clk 0:02:39]}  Kf7 {[%clk 0:01:59]} 12. Qf3 {[%clk 0:02:33]}  Ngf6 {[%clk 0:01:28]} 13. gxf6 {[%clk 0:02:31]}  gxf6 {[%clk 0:01:28]} 14. Rg1 {[%clk 0:02:17]}  f5 {[%clk 0:01:27]} 15. e4 {[%clk 0:02:06]}  dxe4 {[%clk 0:01:20]} 16. Nxe4 {[%clk 0:02:06]}  fxe4 {[%clk 0:01:13]} 17. Qxe4 {[%clk 0:01:54]}  Qa5+ {[%clk 0:01:12]} 18. Bd2 {[%clk 0:01:33]}  Qf5 {[%clk 0:01:12]} 19. Qe3 {[%clk 0:01:33]}  Qh3 {[%clk 0:00:57]} 20. Qxh3 {[%clk 0:01:32]} 1-0


[Site "https://www.chess.com"]

[Event "Titled Tuesday Blitz November 07 Early 2023"]
[White "Bernat, David"]
[Black "Gontcharov, Vladislav"]
[WhiteFideId "2099225"]
[BlackFideId "4123492"]
[WhiteElo "2308"]
[BlackElo "2570"]
[Result "0-1"]
[Round "3"]
[TimeControl "180+1"]
[Date "2023.11.07"]
[WhiteClock "0:00:05"]
[BlackClock "0:00:07"]
[Board "153"]

1. c4 {[%clk 0:02:58]}  e6 {[%clk 0:02:58]} 2. e4 {[%clk 0:02:59]}  d5 {[%clk 0:02:57]} 3. cxd5 {[%clk 0:02:59]}  exd5 {[%clk 0:02:57]} 4. exd5 {[%clk 0:03:00]}  Nf6 {[%clk 0:02:57]} 5. Bb5+ {[%clk 0:03:01]}  Nbd7 {[%clk 0:02:56]} 6. Nc3 {[%clk 0:03:01]}  Be7 {[%clk 0:02:54]} 7. Nf3 {[%clk 0:03:01]}  O-O {[%clk 0:02:53]} 8. O-O {[%clk 0:03:02]}  Nb6 {[%clk 0:02:53]} 9. Re1 {[%clk 0:03:03]}  Nbxd5 {[%clk 0:02:52]} 10. d4 {[%clk 0:03:03]}  a6 {[%clk 0:02:19]} 11. Bc4 {[%clk 0:03:02]}  Bb4 {[%clk 0:02:17]} 12. Bd2 {[%clk 0:02:59]}  Nb6 {[%clk 0:02:09]} 13. Bb3 {[%clk 0:02:56]}  Bg4 {[%clk 0:02:00]} 14. a3 {[%clk 0:02:52]}  Bd6 {[%clk 0:01:52]} 15. h3 {[%clk 0:02:51]}  Bh5 {[%clk 0:01:50]} 16. g4 {[%clk 0:02:51]}  Bg6 {[%clk 0:01:50]} 17. Ne5 {[%clk 0:02:52]}  Bxe5 {[%clk 0:01:42]} 18. dxe5 {[%clk 0:02:53]}  Nfd5 {[%clk 0:01:42]} 19. Nxd5 {[%clk 0:02:43]}  Nxd5 {[%clk 0:01:41]} 20. f4 {[%clk 0:02:28]}  Bd3 {[%clk 0:01:39]} 21. Qf3 {[%clk 0:02:24]}  Nb6 {[%clk 0:01:16]} 22. Bb4 {[%clk 0:02:22]}  c5 {[%clk 0:01:11]} 23. Bxc5 {[%clk 0:02:16]}  Bc4 {[%clk 0:01:00]} 24. Bxc4 {[%clk 0:02:03]}  Nxc4 {[%clk 0:00:59]} 25. Bxf8 {[%clk 0:02:03]}  Qxf8 {[%clk 0:00:56]} 26. b4 {[%clk 0:01:48]}  b5 {[%clk 0:00:54]} 27. Rad1 {[%clk 0:01:44]}  a5 {[%clk 0:00:53]} 28. Rd7 {[%clk 0:01:05]}  axb4 {[%clk 0:00:52]} 29. axb4 {[%clk 0:01:06]}  Ra3 {[%clk 0:00:50]} 30. Qd1 {[%clk 0:00:36]}  Ra8 {[%clk 0:00:49]} 31. Re4 {[%clk 0:00:25]}  h6 {[%clk 0:00:42]} 32. Red4 {[%clk 0:00:25]}  Qxb4 {[%clk 0:00:41]} 33. Rd8+ {[%clk 0:00:22]}  Rxd8 {[%clk 0:00:40]} 34. Rxd8+ {[%clk 0:00:23]}  Kh7 {[%clk 0:00:40]} 35. Qd3+ {[%clk 0:00:20]}  g6 {[%clk 0:00:40]} 36. Rd7 {[%clk 0:00:15]}  Qe1+ {[%clk 0:00:32]} 37. Kg2 {[%clk 0:00:15]}  Kg7 {[%clk 0:00:31]} 38. f5 {[%clk 0:00:08]}  gxf5 {[%clk 0:00:26]} 39. gxf5 {[%clk 0:00:06]}  Qxe5 {[%clk 0:00:24]} 40. Qg3+ {[%clk 0:00:05]}  Qxg3+ {[%clk 0:00:24]} 41. Kxg3 {[%clk 0:00:06]}  Kf6 {[%clk 0:00:19]} 42. Kf4 {[%clk 0:00:06]}  b4 {[%clk 0:00:18]} 43. Rb7 {[%clk 0:00:06]}  Nb2 {[%clk 0:00:16]} 44. Rb6+ {[%clk 0:00:05]}  Kg7 {[%clk 0:00:17]} 45. Ke5 {[%clk 0:00:05]}  Nd3+ {[%clk 0:00:16]} 46. Kd4 {[%clk 0:00:05]}  Nf2 {[%clk 0:00:16]} 47. h4 {[%clk 0:00:04]}  Nh1 {[%clk 0:00:11]} 48. h5 {[%clk 0:00:04]}  Ng3 {[%clk 0:00:11]} 49. f6+ {[%clk 0:00:04]}  Kh7 {[%clk 0:00:10]} 50. Rb5 {[%clk 0:00:05]}  b3 {[%clk 0:00:10]} 51. Ke5 {[%clk 0:00:04]}  Nxh5 {[%clk 0:00:09]} 52. Rxb3 {[%clk 0:00:04]}  Kg6 {[%clk 0:00:09]} 53. Rb6 {[%clk 0:00:03]}  Ng3 {[%clk 0:00:07]} 54. Kf4 {[%clk 0:00:04]}  Nf5 {[%clk 0:00:08]} 55. Ke5 {[%clk 0:00:03]}  h5 {[%clk 0:00:07]} 56. Rb8 {[%clk 0:00:04]}  Nh6 {[%clk 0:00:07]} 57. Rb1 {[%clk 0:00:03]}  h4 {[%clk 0:00:07]} 58. Rg1+ {[%clk 0:00:04]}  Kh5 {[%clk 0:00:06]} 59. Kf4 {[%clk 0:00:04]}  h3 {[%clk 0:00:04]} 60. Rg5+ {[%clk 0:00:04]}  Kh4 {[%clk 0:00:04]} 61. Rg1 {[%clk 0:00:03]}  h2 {[%clk 0:00:04]} 62. Rh1 {[%clk 0:00:03]}  Kh3 {[%clk 0:00:05]} 63. Kf3 {[%clk 0:00:04]}  Nf5 {[%clk 0:00:05]} 64. Kf4 {[%clk 0:00:04]}  Ng3 {[%clk 0:00:05]} 65. Rxh2+ {[%clk 0:00:04]}  Kxh2 {[%clk 0:00:05]} 66. Kg5 {[%clk 0:00:05]}  Ne4+ {[%clk 0:00:04]} 67. Kf5 {[%clk 0:00:05]}  Nd6+ {[%clk 0:00:03]} 68. Ke5 {[%clk 0:00:05]}  Ne8 {[%clk 0:00:04]} 69. Kf5 {[%clk 0:00:03]}  Kh3 {[%clk 0:00:04]} 70. Kg5 {[%clk 0:00:04]}  Kg3 {[%clk 0:00:04]} 71. Kh6 {[%clk 0:00:05]}  Kf4 {[%clk 0:00:05]} 72. Kh7 {[%clk 0:00:05]}  Ke5 {[%clk 0:00:05]} 73. Kg8 {[%clk 0:00:06]}  Ke6 {[%clk 0:00:05]} 74. Kf8 {[%clk 0:00:07]}  Nxf6 {[%clk 0:00:05]} 75. Kg7 {[%clk 0:00:07]}  Nd5 {[%clk 0:00:06]} 76. Kh6 {[%clk 0:00:05]}  f5 {[%clk 0:00:07]} 0-1


[Site "https://www.chess.com"]

[Event "Titled Tuesday Blitz November 07 Early 2023"]
[White "Predator0608"]
[Black "Bogaudinov, Rushan"]
[BlackFideId "4129288"]
[WhiteElo "2569"]
[BlackElo "2307"]
[Result "0-1"]
[Round "3"]
[TimeControl "180+1"]
[Date "2023.11.07"]
[WhiteClock "0:00:19"]
[BlackClock "0:00:13"]
[Board "154"]

1. e4 {[%clk 0:03:00]}  a6 {[%clk 0:02:57]} 2. d4 {[%clk 0:03:00]}  e6 {[%clk 0:02:57]} 3. f4 {[%clk 0:02:52]}  d5 {[%clk 0:02:56]} 4. e5 {[%clk 0:02:51]}  c5 {[%clk 0:02:56]} 5. Nf3 {[%clk 0:02:51]}  Nc6 {[%clk 0:02:56]} 6. Be3 {[%clk 0:02:50]}  cxd4 {[%clk 0:02:55]} 7. Nxd4 {[%clk 0:02:48]}  Nh6 {[%clk 0:02:55]} 8. Nd2 {[%clk 0:02:39]}  Nxd4 {[%clk 0:02:53]} 9. Bxd4 {[%clk 0:02:40]}  Nf5 {[%clk 0:02:54]} 10. Bf2 {[%clk 0:02:40]}  Qc7 {[%clk 0:02:47]} 11. Bd3 {[%clk 0:02:35]}  Bc5 {[%clk 0:02:42]} 12. Bxc5 {[%clk 0:02:18]}  Qxc5 {[%clk 0:02:41]} 13. Bxf5 {[%clk 0:02:18]}  exf5 {[%clk 0:02:40]} 14. Rf1 {[%clk 0:01:22]}  O-O {[%clk 0:02:36]} 15. Nb3 {[%clk 0:01:20]}  Qb4+ {[%clk 0:02:31]} 16. c3 {[%clk 0:01:19]}  Qe4+ {[%clk 0:02:23]} 17. Qe2 {[%clk 0:01:17]}  Qa4 {[%clk 0:01:49]} 18. Rf3 {[%clk 0:01:11]}  Be6 {[%clk 0:01:43]} 19. Nd4 {[%clk 0:00:58]}  Rac8 {[%clk 0:01:33]} 20. Rg3 {[%clk 0:00:54]}  Kh8 {[%clk 0:01:30]} 21. h4 {[%clk 0:00:51]}  b5 {[%clk 0:01:24]} 22. a3 {[%clk 0:00:46]}  Rc7 {[%clk 0:01:20]} 23. h5 {[%clk 0:00:40]}  h6 {[%clk 0:01:20]} 24. Kf2 {[%clk 0:00:36]}  Qc4 {[%clk 0:00:59]} 25. Qd3 {[%clk 0:00:32]}  Qxd3 {[%clk 0:00:50]} 26. Rxd3 {[%clk 0:00:33]}  Rc4 {[%clk 0:00:48]} 27. Ke2 {[%clk 0:00:32]}  Kh7 {[%clk 0:00:46]} 28. Nb3 {[%clk 0:00:28]}  Rxf4 {[%clk 0:00:43]} 29. Rd4 {[%clk 0:00:28]}  Re4+ {[%clk 0:00:37]} 30. Rxe4 {[%clk 0:00:24]}  dxe4 {[%clk 0:00:38]} 31. Nc5 {[%clk 0:00:24]}  Bc4+ {[%clk 0:00:25]} 32. Ke3 {[%clk 0:00:24]}  Rd8 {[%clk 0:00:20]} 33. b3 {[%clk 0:00:22]}  Be6 {[%clk 0:00:20]} 34. Ra2 {[%clk 0:00:19]}  g5 {[%clk 0:00:19]} 35. Rf2 {[%clk 0:00:18]}  Rd5 {[%clk 0:00:16]} 36. Nxe6 {[%clk 0:00:16]}  fxe6 {[%clk 0:00:17]} 37. Rd2 {[%clk 0:00:16]}  Rxe5 {[%clk 0:00:14]} 38. Rd7+ {[%clk 0:00:16]}  Kg8 {[%clk 0:00:14]} 39. Ra7 {[%clk 0:00:15]}  Rd5 {[%clk 0:00:13]} 40. Rxa6 {[%clk 0:00:14]}  Rd3+ {[%clk 0:00:13]} 41. Ke2 {[%clk 0:00:15]}  Kf7 {[%clk 0:00:13]} 42. c4 {[%clk 0:00:14]}  bxc4 {[%clk 0:00:12]} 43. bxc4 {[%clk 0:00:15]}  Rc3 {[%clk 0:00:13]} 44. Ra4 {[%clk 0:00:14]}  f4 {[%clk 0:00:13]} 45. Kf2 {[%clk 0:00:14]}  Rc2+ {[%clk 0:00:13]} 46. Kf1 {[%clk 0:00:15]}  g4 {[%clk 0:00:14]} 47. c5 {[%clk 0:00:14]}  Rxc5 {[%clk 0:00:12]} 48. Rxe4 {[%clk 0:00:15]}  e5 {[%clk 0:00:12]} 49. Ra4 {[%clk 0:00:15]}  Kf6 {[%clk 0:00:13]} 50. Ra6+ {[%clk 0:00:15]}  Kg5 {[%clk 0:00:12]} 51. Re6 {[%clk 0:00:15]}  Kxh5 {[%clk 0:00:12]} 52. a4 {[%clk 0:00:16]}  Kg5 {[%clk 0:00:12]} 53. Ke2 {[%clk 0:00:16]}  Kf5 {[%clk 0:00:12]} 54. Rxh6 {[%clk 0:00:15]}  Ra5 {[%clk 0:00:12]} 55. Rh5+ {[%clk 0:00:13]}  Ke4 {[%clk 0:00:12]} 56. Rh4 {[%clk 0:00:14]}  g3 {[%clk 0:00:12]} 57. Rh8 {[%clk 0:00:13]}  Rxa4 {[%clk 0:00:13]} 58. Rb8 {[%clk 0:00:14]}  Ra2+ {[%clk 0:00:13]} 59. Kf1 {[%clk 0:00:15]}  Rf2+ {[%clk 0:00:12]} 60. Kg1 {[%clk 0:00:15]}  Rd2 {[%clk 0:00:12]} 61. Rb4+ {[%clk 0:00:15]}  Ke3 {[%clk 0:00:12]} 62. Rb3+ {[%clk 0:00:15]}  Ke2 {[%clk 0:00:11]} 63. Rb1 {[%clk 0:00:15]}  Rd1+ {[%clk 0:00:10]} 64. Rxd1 {[%clk 0:00:15]}  Kxd1 {[%clk 0:00:11]} 65. Kf1 {[%clk 0:00:16]}  e4 {[%clk 0:00:11]} 66. Kg1 {[%clk 0:00:17]}  e3 {[%clk 0:00:12]} 67. Kf1 {[%clk 0:00:18]}  e2+ {[%clk 0:00:12]} 68. Kg1 {[%clk 0:00:19]}  e1=Q# {[%clk 0:00:13]} 0-1


[Site "https://www.chess.com"]